fUST/lending_fUST_20250101
["ID","MTS","AMOUNT","RATE_DAILY","PERIOD"]
[347312570,1735680645599,-5847.98,0.00020547,3]
[347312571,1735680645609,-500.0,0.00020547,3]
[347312572,1735680645618,-500.0,0.00020547,3]
[347312573,1735680645628,-515.08,0.00020547,3]
[347312574,1735680645637,-500.0,0.00020547,3]
[347312575,1735680645646,-320.98310921,0.00020547,3]
[347312576,1735680645655,-1005.61,0.00020547,3]
[347312577,1735680645666,-542.37,0.00020547,3]
[347312578,1735680645675,-500.0,0.00020547,3]
[347312579,1735680645685,-500.0,0.00020547,3]
[347312580,1735680645694,-500.0,0.00020547,3]
[347312581,1735680645703,-533.32,0.00020547,3]
[347312582,1735680645714,-500.0,0.00020547,3]
[347312583,1735680645724,-518.65353006,0.00020547,3]
[347312584,1735680645733,-1947.97,0.00020547,3]
[347312585,1735680645743,-610.33,0.00020547,3]
[347312586,1735680645752,-518.35,0.00020547,3]
[347312587,1735680645761,-532.5,0.00020547,3]
[347312588,1735680645771,-500.0,0.00020547,3]
[347312589,1735680645780,-718.87,0.00020547,3]
[347312590,1735680645789,-500.0,0.00020547,3]
[347312591,1735680645799,-1006.36,0.00020547,3]
[347312592,1735680645808,-534.4,0.00020547,3]
[347312593,1735680645818,-1222.95,0.00020547,3]
[347312594,1735680645827,-681.28,0.00020547,3]
[347312595,1735680645836,-4436.1,0.00020547,3]
[347312596,1735680645845,-648.59,0.00020547,3]
[347312597,1735680645855,-1293.77,0.00020547,3]
[347312598,1735680645864,-28206.33,0.00020547,3]
[347312599,1735680646000,-1046.71,0.00020547,3]
[347312600,1735680646010,-1817.89,0.00020547,3]
[347312601,1735680646019,-3907.44,0.00020547,3]
[347312602,1735680646029,-627.14,0.00020547,3]
[347312603,1735680646039,-500.0,0.00020547,3]
[347312604,1735680646048,-718.34,0.00020547,3]
[347312605,1735680646057,-535.93,0.00020547,3]
[347312607,1735680646067,-598.50019382,0.00020547,3]
[347312608,1735680646077,-500.0,0.00020547,3]
[347312609,1735680646086,-500.0,0.00020547,3]
[347312610,1735680646096,-993.24,0.00020547,3]
[347312611,1735680646105,-887.13,0.00020547,3]
[347312612,1735680646115,-500.0,0.00020547,3]
[347312613,1735680646124,-719.79,0.00020547,3]
[347312614,1735680646133,-6914.06,0.00020547,3]
[347312615,1735680646143,-595.54067049,0.00020547,3]
[347312616,1735680646153,-551.23,0.00020547,3]
[347312617,1735680646163,-500.0,0.00020547,3]
[347312618,1735680646172,-500.0,0.00020547,3]
[347312619,1735680646182,-717.46,0.00020547,3]
[347312620,1735680646192,-500.0,0.00020547,3]
[347312621,1735680646200,-500.0,0.00020547,3]
[347312622,1735680646210,-622.78,0.00020547,3]
[347312623,1735680646219,-500.0,0.00020547,3]
[347312624,1735680646228,-928.4,0.00020547,3]
[347312625,1735680646238,-3018.63,0.00020547,3]
[347312626,1735680646247,-1010.44,0.00020547,3]
[347312627,1735680646256,-500.0,0.00020547,3]
[347312628,1735680646265,-1187.0,0.00020547,3]
[347312629,1735680646275,-2468.48,0.00020547,3]
[347312630,1735680646284,-690.04,0.00020547,3]
[347312631,1735680646293,-500.0,0.00020547,3]
[347312632,1735680646302,-682.36,0.00020547,3]
[347312633,1735680646316,-2172.72,0.00020547,3]
[347312634,1735680646325,-500.0,0.00020547,3]
[347312635,1735680646334,-1571.82,0.00020547,3]
[347312636,1735680646343,-619.95,0.00020547,3]
[347312637,1735680646352,-1559.11,0.00020547,3]
[347312638,1735680646363,-500.0,0.00020547,3]
[347312639,1735680646372,-625.0,0.00020547,3]
[347312640,1735680646381,-500.0,0.00020547,3]
[347312641,1735680646392,-1172.68,0.00020547,3]
[347312642,1735680646402,-1169.04,0.00020547,3]
[347312643,1735680646411,-500.0,0.00020547,3]
[347312644,1735680646420,-500.0,0.00020547,3]
[347312645,1735680646430,-629.94,0.00020547,3]
[347312646,1735680646439,-500.0,0.00020547,3]
[347312647,1735680646448,-4987.59,0.000206,2]
[347312648,1735680646458,-10080.35,0.000206,2]
[347312649,1735680646467,-158.281406,0.00020776,2]
[347312651,1735680646477,-500.0,0.00020821,3]
[347312652,1735680646486,-500.0,0.00020821,3]
[347312654,1735680646496,-500.0,0.00020821,3]
[347312656,1735680646505,-284.51930956,0.00020821,3]
[347312658,1735680646515,-500.0,0.00020821,3]
[347312659,1735680646524,-500.0,0.00020821,2]
[347312661,1735680646533,-500.0,0.00020821,3]
[347312663,1735680646543,-500.0,0.00020821,3]
[347312664,1735680646552,-569.83,0.00020821,3]
[347312665,1735680646561,-500.0,0.00020821,3]
[347312666,1735680646570,-500.0,0.00020821,3]
[347312667,1735680646580,-500.0,0.00020821,3]
[347312669,1735680646589,-3163.98,0.00020821,3]
[347312670,1735680646598,-500.0,0.00020821,3]
[347312671,1735680646608,-500.0,0.00020821,3]
[347312672,1735680646617,-500.0,0.00020821,3]
[347312673,1735680646626,-546.66,0.00020821,3]
[347312674,1735680646635,-500.0,0.00020821,3]
[347312675,1735680646644,-500.0,0.00020821,2]
[347312676,1735680646653,-500.0,0.00020821,3]
[347312677,1735680646663,-500.0,0.00020821,3]
[347312678,1735680646672,-674.08,0.00020821,3]
[347312679,1735680646681,-500.0,0.00020821,3]
[347312680,1735680646690,-500.0,0.00020821,3]
[347312681,1735680646700,-500.0,0.00020821,3]
[347312682,1735680646710,-500.0,0.00020821,3]
[347312683,1735680646719,-500.0,0.00020821,2]
[347312684,1735680646728,-500.04,0.00020821,3]
[347312685,1735680646738,-604.25,0.00020821,3]
[347312686,1735680646747,-500.0,0.00020821,3]
[347312687,1735680646757,-726.42,0.00020821,3]
[347312688,1735680646766,-1032.24,0.00020821,3]
[347312689,1735680646775,-500.0,0.00020821,3]
[347312690,1735680646785,-707.36,0.00020821,3]
[347312691,1735680646795,-500.0,0.00020821,3]
[347312692,1735680646804,-500.0,0.00020821,3]
[347312693,1735680646814,-500.0,0.00020821,3]
[347312694,1735680646824,-5847.98,0.00020821,3]
[347312695,1735680646833,-500.0,0.00020821,3]
[347312696,1735680646843,-500.0,0.00020821,3]
[347312697,1735680646852,-515.08,0.00020821,3]
[347312698,1735680646862,-500.0,0.00020821,3]
[347312699,1735680646871,-1005.61,0.00020821,3]
[347312700,1735680646881,-542.37,0.00020821,3]
[347312701,1735680646890,-500.0,0.00020821,3]
[347312702,1735680646899,-500.0,0.00020821,3]
[347312703,1735680646909,-500.0,0.00020821,3]
[347312704,1735680646918,-533.32,0.00020821,3]
[347312705,1735680646927,-500.0,0.00020821,3]
[347312706,1735680646937,-1947.97,0.00020821,3]
[347312707,1735680646946,-610.33,0.00020821,3]
[347312708,1735680646957,-518.35,0.00020821,3]
[347312709,1735680646967,-532.5,0.00020821,3]
[347312710,1735680646976,-500.0,0.00020821,3]
[347312711,1735680646985,-500.0,0.00020821,3]
[347312712,1735680646994,-718.87,0.00020821,3]
[347312713,1735680647003,-1006.36,0.00020821,3]
[347312714,1735680647013,-534.4,0.00020821,3]
[347312715,1735680647022,-1222.95,0.00020821,3]
[347312716,1735680647031,-681.28,0.00020821,3]
[347312717,1735680647040,-4436.1,0.00020821,3]
[347312718,1735680647049,-648.59,0.00020821,3]
[347312719,1735680647059,-1293.77,0.00020821,3]
[347312720,1735680647069,-28206.33,0.00020821,3]
[347312721,1735680647078,-1046.71,0.00020821,3]
[347312722,1735680647087,-1817.89,0.00020821,3]
[347312723,1735680647096,-3907.44,0.00020821,3]
[347312724,1735680647105,-627.14,0.00020821,3]
[347312725,1735680647115,-500.0,0.00020821,3]
[347312726,1735680647124,-718.34,0.00020821,3]
[347312727,1735680647133,-535.93,0.00020821,3]
[347312728,1735680647142,-500.0,0.00020821,3]
[347312729,1735680647151,-500.0,0.00020821,3]
[347312730,1735680647160,-993.24,0.00020821,3]
[347312731,1735680647170,-887.13,0.00020821,3]
[347312732,1735680647179,-500.0,0.00020821,3]
[347312733,1735680647188,-719.79,0.00020821,3]
[347312734,1735680647197,-6914.06,0.00020821,3]
[347312735,1735680647207,-551.23,0.00020821,3]
[347312736,1735680647216,-500.0,0.00020821,3]
[347312737,1735680647225,-500.0,0.00020821,3]
[347312738,1735680647234,-717.46,0.00020821,3]
[347312739,1735680647244,-223.11128143,0.00020821,3]
[347312740,1735680647253,-500.0,0.00020821,3]
[347312741,1735680647263,-622.78,0.00020821,3]
[347312742,1735680647272,-500.0,0.00020821,3]
[347312743,1735680647281,-928.4,0.00020821,3]
[347312744,1735680647290,-3018.63,0.00020821,3]
[347312745,1735680647300,-1010.44,0.00020821,3]
[347312746,1735680647309,-500.0,0.00020821,3]
[347312747,1735680647321,-1187.0,0.00020821,3]
[347312748,1735680647331,-2468.48,0.00020821,3]
[347312749,1735680647340,-690.04,0.00020821,3]
[347312750,1735680647349,-500.0,0.00020821,3]
[347312751,1735680647359,-682.36,0.00020821,3]
[347312752,1735680647368,-2172.72,0.00020821,3]
[347312754,1735680647377,-500.0,0.00020821,3]
[347312755,1735680647386,-1571.82,0.00020821,3]
[347312756,1735680647397,-619.95,0.00020821,3]
[347312757,1735680647406,-1559.11,0.00020821,3]
[347312758,1735680647416,-500.0,0.00020821,3]
[347312759,1735680647425,-625.0,0.00020821,3]
[347312760,1735680647434,-500.0,0.00020821,3]
[347312761,1735680647444,-1172.68,0.00020821,3]
[347312762,1735680647453,-1169.04,0.00020821,3]
[347312763,1735680647463,-500.0,0.00020821,3]
[347312764,1735680647472,-500.0,0.00020821,3]
[347312765,1735680647482,-629.94,0.00020821,3]
[347312766,1735680647491,-500.0,0.00020821,3]
[347312767,1735680647500,-10000.0,0.00021,5]
[347312768,1735680647509,-263.16727245,0.00021,2]
[347312769,1735680647519,-10331.0489514,0.00021,2]
[347312770,1735680647528,-237.17236568,0.00021,2]
[347312771,1735680647538,-158.281406,0.00021032,2]
[347312772,1735680647548,-500.0,0.00021095,3]
[347312773,1735680647558,-500.0,0.00021095,3]
[347312774,1735680647567,-500.0,0.00021095,3]
[347312775,1735680647576,-500.0,0.00021095,3]
[347312776,1735680647586,-500.0,0.00021095,3]
[347312777,1735680647595,-524.25112027,0.00021095,3]
[347312778,1735680647604,-569.83,0.00021095,3]
[347312779,1735680647613,-500.0,0.00021095,3]
[347312780,1735680647622,-444.9467695,0.00021095,3]
[347312781,1735680647632,-500.0,0.00021095,3]
[347312782,1735680647641,-3163.98,0.00021095,3]
[347312783,1735680647650,-500.0,0.00021095,3]
[347312784,1735680647660,-500.0,0.00021095,3]
[347312785,1735680647669,-500.0,0.00021095,3]
[347312786,1735680647679,-546.66,0.00021095,3]
[347312787,1735680647688,-500.0,0.00021095,3]
[347312788,1735680647697,-500.0,0.00021095,2]
[347312789,1735680647707,-500.0,0.00021095,3]
[347312790,1735680647716,-500.0,0.00021095,3]
[347312791,1735680647733,-674.08,0.00021095,3]
[347312792,1735680647744,-500.0,0.00021095,3]
[347312793,1735680647754,-500.0,0.00021095,3]
[347312794,1735680647763,-500.0,0.00021095,3]
[347312795,1735680647774,-500.0,0.00021095,3]
[347312796,1735680647783,-500.04,0.00021095,3]
[347312797,1735680647792,-604.25,0.00021095,3]
[347312798,1735680647802,-500.0,0.00021095,3]
[347312799,1735680647811,-726.42,0.00021095,3]
[347312800,1735680647820,-1032.24,0.00021095,3]
[347312801,1735680647830,-500.0,0.00021095,3]
[347312802,1735680647839,-707.36,0.00021095,3]
[347312803,1735680647849,-500.0,0.00021095,3]
[347312804,1735680647858,-500.0,0.00021095,3]
[347312805,1735680647867,-500.0,0.00021095,3]
[347312806,1735680647877,-5847.98,0.00021095,3]
[347312807,1735680647886,-500.0,0.00021095,3]
[347312808,1735680647895,-500.0,0.00021095,3]
[347312809,1735680647905,-515.08,0.00021095,3]
[347312810,1735680647914,-555.78671408,0.00021095,3]
[347312811,1735680647923,-1005.61,0.00021095,3]
[347312812,1735680647933,-542.37,0.00021095,3]
[347312813,1735680647943,-500.0,0.00021095,3]
[347312814,1735680647952,-500.0,0.00021095,3]
[347312815,1735680647962,-500.0,0.00021095,3]
[347312816,1735680647971,-533.32,0.00021095,3]
[347312817,1735680647980,-500.0,0.00021095,3]
[347312818,1735680647989,-1947.97,0.00021095,3]
[347312819,1735680647999,-610.33,0.00021095,3]
[347312820,1735680648009,-518.35,0.00021095,3]
[347312821,1735680648019,-532.5,0.00021095,3]
[347312822,1735680648029,-500.0,0.00021095,3]
[347312823,1735680648039,-500.0,0.00021095,3]
[347312824,1735680648048,-718.87,0.00021095,3]
[347312825,1735680648058,-1006.36,0.00021095,3]
[347312826,1735680648067,-534.4,0.00021095,3]
[347312828,1735680648077,-1222.95,0.00021095,3]
[347312829,1735680648086,-681.28,0.00021095,3]
[347312830,1735680648096,-4436.1,0.00021095,3]
[347312831,1735680648105,-648.59,0.00021095,3]
[347312832,1735680648115,-1293.77,0.00021095,3]
[347312833,1735680648125,-28206.33,0.00021095,3]
[347312834,1735680648135,-1046.71,0.00021095,3]
[347312835,1735680648145,-1817.89,0.00021095,3]
[347312836,1735680648154,-3907.44,0.00021095,3]
[347312837,1735680648164,-627.14,0.00021095,3]
[347312838,1735680648173,-500.0,0.00021095,3]
[347312839,1735680648183,-718.34,0.00021095,3]
[347312840,1735680648192,-535.93,0.00021095,3]
[347312841,1735680648201,-500.0,0.00021095,3]
[347312842,1735680648211,-500.0,0.00021095,3]
[347312843,1735680648221,-993.24,0.00021095,3]
[347312844,1735680648230,-887.13,0.00021095,3]
[347312845,1735680648239,-500.0,0.00021095,3]
[347312846,1735680648249,-719.79,0.00021095,3]
[347312847,1735680648258,-6914.06,0.00021095,3]
[347312848,1735680648268,-551.23,0.00021095,3]
[347312849,1735680648277,-500.0,0.00021095,3]
[347312850,1735680648287,-500.0,0.00021095,3]
[347312851,1735680648297,-717.46,0.00021095,3]
[347312852,1735680648306,-500.0,0.00021095,3]
[347312853,1735680648324,-622.78,0.00021095,3]
[347312854,1735680648333,-500.0,0.00021095,3]
[347312855,1735680648344,-928.4,0.00021095,3]
[347312856,1735680648353,-3018.63,0.00021095,3]
[347312857,1735680648366,-1010.44,0.00021095,3]
[347312858,1735680648376,-500.0,0.00021095,3]
[347312859,1735680648386,-1187.0,0.00021095,3]
[347312860,1735680648397,-2468.48,0.00021095,3]
[347312861,1735680648407,-690.04,0.00021095,3]
[347312862,1735680648418,-454.37371945,0.00021095,3]
[347312863,1735680648428,-682.36,0.00021095,3]
[347312864,1735680648437,-276.90916349,0.00021095,3]
[347312865,1735680648448,-2172.72,0.00021095,3]
[347312866,1735680648457,-1571.82,0.00021095,3]
[347312867,1735680648467,-619.95,0.00021095,3]
[347312868,1735680648476,-1559.11,0.00021095,3]
[347312869,1735680648486,-500.0,0.00021095,3]
[347312870,1735680648495,-625.0,0.00021095,3]
[347312871,1735680648504,-500.0,0.00021095,3]
[347312872,1735680648514,-1172.68,0.00021095,3]
[347312873,1735680648523,-1169.04,0.00021095,3]
[347312874,1735680648533,-547.24193628,0.00021095,3]
[347312875,1735680648542,-500.0,0.00021095,3]
[347312876,1735680648551,-629.94,0.00021095,3]
[347312877,1735680648561,-500.0,0.00021095,3]
[347312878,1735680648570,-737.18,0.000211,2]
[347312879,1735680648579,-465.02988066,0.00021153,2]
[347312880,1735680648588,-158.281406,0.00021288,2]
[347312881,1735680648729,-180.69763039,0.00021368,2]
[347312882,1735680648738,-500.0,0.00021369,3]
[347312883,1735680648748,-500.0,0.00021369,3]
[347312884,1735680648757,-500.0,0.00021369,3]
[347312885,1735680648766,-500.0,0.00021369,3]
[347312886,1735680648775,-500.0,0.00021369,3]
[347312887,1735680648785,-569.83,0.00021369,3]
[347312888,1735680648794,-500.0,0.00021369,3]
[347312889,1735680648803,-500.0,0.00021369,3]
[347312890,1735680648812,-3163.98,0.00021369,3]
[347312891,1735680648822,-500.0,0.00021369,3]
[347312892,1735680648831,-500.0,0.00021369,3]
[347312893,1735680648840,-500.0,0.00021369,3]
[347312894,1735680648849,-546.66,0.00021369,3]
[347312895,1735680648858,-500.0,0.00021369,3]
[347312896,1735680648867,-500.0,0.00021369,2]
[347312897,1735680648876,-531.94195269,0.00021369,3]
[347312898,1735680648886,-500.0,0.00021369,3]
[347312899,1735680648895,-674.08,0.00021369,3]
[347312900,1735680648904,-500.0,0.00021369,3]
[347312901,1735680648914,-500.0,0.00021369,3]
[347312902,1735680648923,-500.0,0.00021369,3]
[347312903,1735680648932,-500.0,0.00021369,3]
[347312904,1735680648942,-500.04,0.00021369,3]
[347312905,1735680648951,-604.25,0.00021369,3]
[347312906,1735680648960,-500.0,0.00021369,3]
[347312907,1735680648970,-726.42,0.00021369,3]
[347312908,1735680648979,-1032.24,0.00021369,3]
[347312909,1735680648989,-500.0,0.00021369,3]
[347312910,1735680648998,-707.36,0.00021369,3]
[347312911,1735680649008,-500.0,0.00021369,3]
[347312912,1735680649018,-500.0,0.00021369,3]
[347312913,1735680649027,-500.0,0.00021369,3]
[347312914,1735680649036,-5847.98,0.00021369,3]
[347312915,1735680649046,-500.0,0.00021369,3]
[347312916,1735680649055,-596.97683726,0.00021369,3]
[347312917,1735680649065,-515.08,0.00021369,3]
[347312918,1735680649075,-1005.61,0.00021369,3]
[347312919,1735680649084,-542.37,0.00021369,3]
[347312920,1735680649093,-159.61783363,0.00021369,3]
[347312921,1735680649102,-500.0,0.00021369,3]
[347312922,1735680649112,-500.0,0.00021369,3]
[347312923,1735680649121,-533.32,0.00021369,3]
[347312924,1735680649130,-1947.97,0.00021369,3]
[347312925,1735680649140,-500.0,0.00021369,3]
[347312926,1735680649148,-610.33,0.00021369,3]
[347312927,1735680649158,-518.35,0.00021369,3]
[347312928,1735680649167,-532.5,0.00021369,3]
[347312929,1735680649176,-449.03872167,0.00021369,3]
[347312930,1735680649185,-500.0,0.00021369,3]
[347312931,1735680649195,-718.87,0.00021369,3]
[347312932,1735680649203,-1006.36,0.00021369,3]
[347312933,1735680649212,-534.4,0.00021369,3]
[347312934,1735680649222,-1222.95,0.00021369,3]
[347312935,1735680649231,-681.28,0.00021369,3]
[347312936,1735680649240,-4436.1,0.00021369,3]
[347312937,1735680649249,-648.59,0.00021369,3]
[347312938,1735680649258,-1293.77,0.00021369,3]
[347312939,1735680649268,-28206.33,0.00021369,3]
[347312940,1735680649277,-1046.71,0.00021369,3]
[347312941,1735680649287,-1817.89,0.00021369,3]
[347312942,1735680649296,-3907.44,0.00021369,3]
[347312943,1735680649305,-627.14,0.00021369,3]
[347312944,1735680649319,-500.0,0.00021369,3]
[347312945,1735680649328,-718.34,0.00021369,3]
[347312946,1735680649337,-535.93,0.00021369,3]
[347312947,1735680649347,-500.0,0.00021369,3]
[347312948,1735680649356,-500.0,0.00021369,3]
[347312949,1735680649366,-993.24,0.00021369,3]
[347312950,1735680649375,-887.13,0.00021369,3]
[347312951,1735680649385,-500.0,0.00021369,3]
[347312952,1735680649396,-719.79,0.00021369,3]
[347312953,1735680649406,-6914.06,0.00021369,3]
[347312954,1735680649416,-551.23,0.00021369,3]
[347312955,1735680649426,-500.0,0.00021369,3]
[347312956,1735680649435,-523.85048012,0.00021369,3]
[347312957,1735680649445,-717.46,0.00021369,3]
[347312958,1735680649454,-500.0,0.00021369,3]
[347312959,1735680649463,-622.78,0.00021369,3]
[347312960,1735680649472,-500.0,0.00021369,3]
[347312961,1735680649482,-928.4,0.00021369,3]
[347312962,1735680649491,-3018.63,0.00021369,3]
[347312963,1735680649500,-1010.44,0.00021369,3]
[347312964,1735680649509,-1187.0,0.00021369,3]
[347312965,1735680649519,-500.0,0.00021369,3]
[347312966,1735680649527,-2468.48,0.00021369,3]
[347312967,1735680649537,-690.04,0.00021369,3]
[347312968,1735680649546,-682.36,0.00021369,3]
[347312969,1735680649556,-1571.82,0.00021369,3]
[347312970,1735680649565,-2172.72,0.00021369,3]
[347312971,1735680649574,-619.95,0.00021369,3]
[347312972,1735680649583,-1559.11,0.00021369,3]
[347312973,1735680649593,-500.0,0.00021369,3]
[347312974,1735680649601,-625.0,0.00021369,3]
[347312975,1735680649610,-500.0,0.00021369,3]
[347312976,1735680649620,-1172.68,0.00021369,3]
[347312977,1735680649628,-1169.04,0.00021369,3]
[347312978,1735680649637,-500.0,0.00021369,3]
[347312979,1735680649647,-629.94,0.00021369,3]
[347312980,1735680649656,-500.0,0.00021369,3]
[347312981,1735680649665,-773.177,0.0002137,2]
[347312982,1735680649674,-2762.9319105,0.00021525,5]
[347312983,1735680649684,-158.281406,0.00021543,2]
[347312984,1735680649693,-151.0,0.00021556,7]
[347312985,1735680649702,-600.0,0.00021614,2]
[347312986,1735680649711,-377.09732389,0.00021643,3]
[347312987,1735680649720,-500.0,0.00021643,3]
[347312988,1735680649730,-168.99880763,0.00021643,3]
[347312989,1735680649739,-500.0,0.00021643,3]
[347312990,1735680649748,-500.0,0.00021643,3]
[347312991,1735680649757,-569.83,0.00021643,3]
[347312992,1735680649767,-500.0,0.00021643,3]
[347312993,1735680649776,-500.0,0.00021643,3]
[347312994,1735680649786,-3163.98,0.00021643,3]
[347312995,1735680649795,-500.0,0.00021643,3]
[347312996,1735680649805,-500.0,0.00021643,3]
[347312997,1735680649815,-500.0,0.00021643,3]
[347312998,1735680649824,-546.66,0.00021643,3]
[347312999,1735680649833,-243.41979682,0.00021643,3]
[347313000,1735680649842,-500.0,0.00021643,2]
[347313001,1735680649851,-500.0,0.00021643,3]
[347313002,1735680649860,-674.08,0.00021643,3]
[347313003,1735680649869,-500.0,0.00021643,3]
[347313004,1735680649878,-500.0,0.00021643,3]
[347313005,1735680649888,-500.0,0.00021643,3]
[347313006,1735680649897,-500.04,0.00021643,3]
[347313007,1735680649906,-604.25,0.00021643,3]
[347313008,1735680649916,-500.0,0.00021643,3]
[347313009,1735680649925,-726.42,0.00021643,3]
[347313010,1735680649934,-1032.24,0.00021643,3]
[347313011,1735680649944,-500.0,0.00021643,3]
[347313012,1735680649954,-707.36,0.00021643,3]
[347313013,1735680649963,-500.0,0.00021643,3]
[347313014,1735680649973,-500.0,0.00021643,3]
[347313015,1735680649982,-500.0,0.00021643,3]
[347313016,1735680649991,-5847.98,0.00021643,3]
[347313017,1735680650001,-500.0,0.00021643,3]
[347313018,1735680650010,-515.08,0.00021643,3]
[347313019,1735680650020,-1005.61,0.00021643,3]
[347313020,1735680650031,-542.37,0.00021643,3]
[347313021,1735680650040,-500.0,0.00021643,3]
[347313022,1735680650050,-500.0,0.00021643,3]
[347313023,1735680650060,-533.32,0.00021643,3]
[347313024,1735680650069,-1947.97,0.00021643,3]
[347313025,1735680650079,-500.0,0.00021643,3]
[347313026,1735680650088,-610.33,0.00021643,3]
[347313027,1735680650097,-518.35,0.00021643,3]
[347313028,1735680650107,-532.5,0.00021643,3]
[347313029,1735680650116,-500.0,0.00021643,3]
[347313030,1735680650125,-718.87,0.00021643,3]
[347313031,1735680650134,-1006.36,0.00021643,3]
[347313032,1735680650144,-534.4,0.00021643,3]
[347313033,1735680650153,-1222.95,0.00021643,3]
[347313034,1735680650163,-681.28,0.00021643,3]
[347313035,1735680650173,-4436.1,0.00021643,3]
[347313036,1735680650182,-648.59,0.00021643,3]
[347313037,1735680650191,-1293.77,0.00021643,3]
[347313038,1735680650201,-28206.33,0.00021643,3]
[347313039,1735680650210,-1046.71,0.00021643,3]
[347313040,1735680650219,-1817.89,0.00021643,3]
[347313041,1735680650228,-3907.44,0.00021643,3]
[347313042,1735680650237,-627.14,0.00021643,3]
[347313043,1735680650246,-500.0,0.00021643,3]
[347313044,1735680650255,-718.34,0.00021643,3]
[347313045,1735680650264,-535.93,0.00021643,3]
[347313046,1735680650273,-500.0,0.00021643,3]
[347313047,1735680650283,-500.0,0.00021643,3]
[347313048,1735680650292,-993.24,0.00021643,3]
[347313049,1735680650301,-887.13,0.00021643,3]
[347313050,1735680650311,-500.0,0.00021643,3]
[347313051,1735680650324,-719.79,0.00021643,3]
[347313052,1735680650333,-6914.06,0.00021643,3]
[347313053,1735680650342,-551.23,0.00021643,3]
[347313054,1735680650352,-500.0,0.00021643,3]
[347313055,1735680650362,-717.46,0.00021643,3]
[347313056,1735680650372,-500.0,0.00021643,3]
[347313057,1735680650382,-622.78,0.00021643,3]
[347313058,1735680650393,-500.0,0.00021643,3]
[347313059,1735680650403,-928.4,0.00021643,3]
[347313060,1735680650412,-3018.63,0.00021643,3]
[347313061,1735680650422,-1187.0,0.00021643,3]
[347313062,1735680650432,-1010.44,0.00021643,3]
[347313063,1735680650442,-500.0,0.00021643,3]
[347313064,1735680650451,-2468.48,0.00021643,3]
[347313065,1735680650461,-690.04,0.00021643,3]
[347313066,1735680650470,-682.36,0.00021643,3]
[347313067,1735680650480,-1571.82,0.00021643,3]
[347313068,1735680650489,-2172.72,0.00021643,3]
[347313069,1735680650499,-619.95,0.00021643,3]
[347313070,1735680650509,-1559.11,0.00021643,3]
[347313071,1735680650518,-500.0,0.00021643,3]
[347313072,1735680650527,-625.0,0.00021643,3]
[347313073,1735680650536,-500.0,0.00021643,3]
[347313074,1735680650545,-1172.68,0.00021643,3]
[347313075,1735680650554,-1169.04,0.00021643,3]
[347313076,1735680650563,-500.0,0.00021643,3]
[347313077,1735680650572,-629.94,0.00021643,3]
[347313078,1735680650582,-500.0,0.00021643,3]
[347313079,1735680650590,-587.0,0.0002171,2]